bitfinex/quotes_SOLUSD_20250621
["timestamp","ask_amount","ask_price","bid_price","bid_amount"]
[1750528315812,0.74,138.86,138.83,25.2094161]
[1750528316130,9.08744866,138.84,138.83,7.20305409]
[1750528316330,9.82744866,138.84,138.82,7.20357297]
[1750528316730,0.74,138.84,138.82,7.20357297]
[1750528316924,26.74,138.84,138.82,7.20357297]
[1750528318722,26.0,138.84,138.82,7.20357297]
[1750528319638,26.74,138.86,138.83,9.08744866]
[1750528320208,26.74,138.86,138.83,18.64964886]
[1750528320464,26.74,138.86,138.83,27.73709752]
[1750528320953,26.74,138.86,138.84,7.20253529]
[1750528321539,148.74,138.85,138.84,7.20253529]
[1750528322424,148.74,138.85,138.8,7.20461095]
[1750528322425,26.74,138.81,138.8,7.20461095]
[1750528322925,26.0,138.81,138.79,16.29257871]
[1750528324436,26.0,138.81,138.79,7.20513005]
[1750528325124,0.74,138.8,138.79,7.20513005]
[1750528326654,26.74,138.81,138.79,7.20513005]
[1750528327632,148.0,138.8,138.79,7.20513005]
[1750528327947,157.82744866,138.8,138.79,7.20513005]
[1750528329045,148.74,138.8,138.79,7.20513005]
[1750528330248,26.0,138.76,138.67,36.05682555]
[1750528330419,9.08744866,138.73,138.69,9.08744866]
[1750528330615,9.82744866,138.71,138.67,34.32722654]
[1750528330847,9.08744866,138.72,138.67,34.32722654]
[1750528331146,26.74,138.72,138.67,34.32722654]
[1750528331348,9.08744866,138.71,138.68,18.64964886]
[1750528332050,9.82744866,138.71,138.68,18.64964886]
[1750528332750,9.82744866,138.71,138.69,7.21032518]
[1750528332949,15.17287295,138.71,138.69,7.21032518]
[1750528333148,41.17287295,138.72,138.69,7.21032518]
[1750528333328,26.0,138.72,138.69,40.40901109]
[1750528335355,26.0,138.72,138.69,25.23613814]
[1750528335534,26.0,138.72,138.69,40.40901109]
[1750528336165,163.88287295,138.77,138.72,18.64964886]
[1750528336350,148.0,138.77,138.74,33.82252181]
[1750528336952,148.0,138.77,138.76,15.17287295]
[1750528337256,148.0,138.77,138.76,41.02920961]
[1750528337866,1.6111,138.83,138.76,41.02920961]
[1750528337867,163.88287295,138.82,138.77,18.64964886]
[1750528338035,148.0,138.81,138.77,63.96252181]
[1750528338546,0.71,138.8,138.77,63.96252181]
[1750528338729,0.71,138.8,138.77,48.78964886]
[1750528339570,0.71,138.8,138.78,7.20564922]
[1750528339767,0.71,138.79,138.78,25.21977229]
[1750528339952,15.17287295,138.8,138.78,25.21977229]
[1750528340270,0.71,138.8,138.78,25.21977229]
[1750528340967,41.88287295,138.79,138.78,25.21977229]
[1750528343447,41.88287295,138.79,138.76,25.22340731]
[1750528343639,15.17287295,138.78,138.76,25.22340731]
[1750528346067,163.17287295,138.78,138.76,18.01671951]
[1750528346268,148.0,138.78,138.76,51.83924132]
[1750528346444,148.0,138.78,138.77,33.82252181]
[1750528347463,148.0,138.78,138.77,41.02869029]
[1750528347679,148.0,138.78,138.77,25.85581734]
[1750528350150,148.0,138.78,138.77,41.02869029]
[1750528350654,26.71,138.83,138.77,131.10579629]
[1750528350859,26.0,138.83,138.79,33.82252181]
[1750528351061,26.0,138.83,138.81,18.64964886]
[1750528351379,15.88287295,138.85,138.81,33.82252181]
[1750528351689,41.88287295,138.85,138.81,33.82252181]
[1750528351868,41.88287295,138.85,138.82,25.2125054]
[1750528353586,26.0,138.85,138.82,25.2125054]
[1750528353786,148.0,138.86,138.85,18.64964886]
[1750528353990,148.0,138.86,138.85,33.82252181]
[1750528355363,148.0,138.86,138.85,41.02453837]
[1750528355888,0.71,138.92,138.85,59.02957978]
[1750528356090,0.71,138.92,138.89,18.64964886]
[1750528356091,15.88287295,138.92,138.89,18.64964886]
[1750528356274,26.0,138.9,138.89,48.76964886]
[1750528357369,41.88287295,138.9,138.89,7.1999424]
[1750528357573,26.0,138.9,138.89,7.1999424]
[1750528361162,26.0,138.87,138.82,61.23037026]
[1750528361366,0.71,138.85,138.83,18.64964886]
[1750528361691,9.07815888,138.86,138.83,18.64964886]
[1750528362100,26.71,138.89,138.83,27.72780774]
[1750528362392,9.78815888,138.88,138.85,18.64964886]
[1750528362615,9.78815888,138.87,138.83,27.72780774]
[1750528362797,15.14205831,138.85,138.83,18.64964886]
[1750528362987,15.14205831,138.85,138.84,25.85218415]
[1750528362988,15.85205831,138.85,138.84,25.85218415]
[1750528363372,15.85205831,138.86,138.84,25.85218415]
[1750528363981,15.14205831,138.87,138.84,43.85852238]
[1750528364188,15.14205831,138.86,138.84,43.85852238]
[1750528364387,15.85205831,138.86,138.84,43.85852238]
[1750528365382,15.14205831,138.87,138.84,43.85852238]
[1750528365616,15.14205831,138.88,138.85,18.64964886]
[1750528366122,15.85205831,138.88,138.85,18.64964886]
[1750528366468,0.71,138.88,138.85,18.64964886]
[1750528366692,15.85205831,138.88,138.85,18.64964886]
[1750528366883,15.85205831,138.87,138.85,18.64964886]
[1750528367497,15.85205831,138.87,138.86,7.20149791]
[1750528369500,15.14205831,138.87,138.85,7.20201656]
[1750528369807,15.85205831,138.86,138.85,7.20201656]
[1750528370389,15.14205831,138.86,138.85,7.20201656]
[1750528370597,15.85205831,138.87,138.85,25.20705797]
[1750528372378,174.71,138.89,138.85,25.20705797]
[1750528372600,15.14205831,138.88,138.85,25.20705797]
[1750528373292,26.0,138.87,138.86,18.64964886]
[1750528374049,148.71,138.89,138.86,18.64964886]
[1750528374220,148.0,138.89,138.86,33.79170717]
[1750528374513,148.0,138.89,138.87,7.20097933]
[1750528376813,41.85205831,138.91,138.88,18.64964886]
[1750528377012,26.0,138.89,138.88,33.79170717]
[1750528377212,15.14205831,138.92,138.88,33.79170717]
[1750528377424,26.0,138.92,138.88,33.79170717]
[1750528377926,0.71,138.91,138.89,7.1999424]
[1750528378426,15.85205831,138.91,138.89,7.1999424]
[1750528379818,0.71,138.91,138.89,7.1999424]
[1750528380023,41.85205831,138.92,138.89,25.1997984]
[1750528381824,148.0,138.93,138.9,33.79170717]
[1750528382023,148.0,138.93,138.89,25.1997984]
[1750528382024,148.0,138.93,138.92,18.64964886]
[1750528382208,148.0,138.93,138.92,33.79170717]
[1750528383013,148.0,138.93,138.92,40.99009473]
[1750528383214,163.85205831,138.99,138.92,125.03800143]
[1750528383424,15.85205831,138.95,138.92,109.89594312]
[1750528383806,0.71,138.95,138.92,109.89594312]
[1750528384941,0.71,138.95,138.92,79.83594312]
[1750528385435,9.78149489,138.93,138.92,43.84400532]
[1750528385624,35.78149489,138.93,138.92,7.19838756]
[1750528386207,26.71,138.91,138.9,7.19942404]
[1750528386406,35.78149489,138.91,138.9,7.19942404]
[1750528386938,0.71,138.9,138.87,7.20097933]
[1750528387145,35.07149489,138.88,138.87,7.20097933]
[1750528387346,35.78149489,138.88,138.86,18.00246145]
[1750528387640,35.78149489,138.88,138.86,36.65211031]
[1750528388028,9.07149489,138.87,138.86,18.00246145]
[1750528388325,0.71,138.86,138.85,7.20201656]
[1750528388522,35.78149489,138.86,138.85,7.20201656]
[1750528388837,26.0,138.88,138.86,18.64964886]
[1750528389607,35.07149489,138.88,138.87,7.20097933]
[1750528389804,35.78149489,138.88,138.87,7.20097933]
[1750528390728,26.71,138.88,138.87,7.20097933]
[1750528391872,0.71,138.89,138.87,25.20342766]
[1750528392160,9.78149489,138.89,138.87,25.20342766]
[1750528392949,35.78149489,138.88,138.87,25.20342766]
[1750528393532,26.71,138.88,138.87,25.20342766]
[1750528393730,26.0,138.88,138.87,25.20342766]
[1750528395232,26.7,138.88,138.87,25.20342766]
[1750528397070,174.7,138.88,138.87,25.20342766]
[1750528397529,174.0,138.88,138.87,25.20342766]
[1750528398229,183.77149489,138.88,138.87,25.20342766]
[1750528398437,148.0,138.88,138.87,43.85307652]
[1750528399136,157.77149489,138.88,138.87,25.20342766]
[1750528399950,157.77149489,138.88,138.85,43.85670683]
[1750528400231,26.0,138.9,138.85,25.20705797]
[1750528400232,9.77149489,138.86,138.85,25.20705797]
[1750528400435,26.0,138.84,138.83,7.20255931]
[1750528400635,35.77149489,138.84,138.83,7.20255931]
[1750528402036,35.07149489,138.84,138.8,25.21534167]
[1750528402254,26.0,138.81,138.8,25.21534167]
[1750528404860,41.14883273,138.81,138.8,25.21534167]
[1750528405065,41.84883273,138.81,138.8,25.21534167]
[1750528405244,0.7,138.8,138.75,7.2072072]
[1750528405557,15.14883273,138.77,138.76,18.01670342]
[1750528405759,15.14883273,138.78,138.76,18.01670342]
[1750528405939,15.84883273,138.78,138.76,18.01670342]
[1750528406263,41.14883273,138.77,138.76,18.01670342]
[1750528406478,0.7,138.76,138.75,7.2072072]
[1750528406762,15.84883273,138.76,138.75,7.2072072]
[1750528410572,0.7,138.76,138.75,7.2072072]
[1750528410786,0.7,138.78,138.75,25.22522521]
[1750528411069,26.0,138.76,138.75,25.22522521]
[1750528411384,148.0,138.79,138.75,25.22522521]
[1750528411547,148.0,138.79,138.76,15.14883273]
[1750528411863,174.0,138.79,138.77,7.20616848]
[1750528412388,163.84883273,138.78,138.77,7.20616848]
[1750528413139,148.7,138.78,138.77,7.20616848]
[1750528414156,148.7,138.78,138.76,7.2066878]
[1750528414942,148.0,138.78,138.76,7.2066878]
[1750528415270,148.0,138.78,138.76,22.35552053]
[1750528417344,148.0,138.78,138.77,33.79848159]
[1750528418074,148.0,138.85,138.79,18.64964886]
[1750528418277,148.0,138.85,138.81,15.14883273]
[1750528418577,148.0,138.85,138.82,15.14883273]
[1750528419565,174.0,138.85,138.82,15.14883273]
[1750528420164,148.0,138.85,138.83,7.20305409]
[1750528422050,148.7,138.85,138.83,7.20305409]
[1750528422666,15.84883273,138.84,138.83,7.20305409]
[1750528424676,174.72,138.83,138.81,7.20409192]
[1750528424973,0.72,138.82,138.81,7.20409192]
[1750528425172,174.0,138.83,138.81,7.20409192]
[1750528425372,174.72,138.83,138.81,7.20409192]
[1750528427155,174.0,138.83,138.81,7.20409192]
[1750528427555,174.72,138.83,138.81,7.20409192]
[1750528429664,148.0,138.82,138.81,7.20409192]
[1750528430468,148.0,138.82,138.81,16.29306926]
[1750528431673,148.0,138.82,138.81,34.94271812]
[1750528434399,148.0,138.82,138.81,64.94271812]
[1750528434897,174.72,138.86,138.82,18.64964886]
[1750528435074,174.72,138.86,138.82,27.7386262]
[1750528435264,174.72,138.86,138.82,18.64964886]
[1750528435469,0.72,138.85,138.82,27.7386262]
[1750528437299,0.72,138.85,138.83,7.20305409]
[1750528437588,174.0,138.86,138.84,18.64964886]
[1750528437795,0.72,138.85,138.84,18.64964886]
[1750528437999,0.72,138.85,138.83,25.21068932]
[1750528438686,9.80897734,138.84,138.83,25.21068932]
[1750528439203,0.72,138.84,138.81,25.21432173]
[1750528439390,0.72,138.83,138.81,25.21432173]
[1750528440676,0.72,138.84,138.81,34.30329907]
[1750528441394,0.72,138.84,138.82,18.64964886]
[1750528441998,26.0,138.83,138.82,18.64964886]
[1750528442606,26.0,138.83,138.82,25.85322183]
[1750528443404,26.72,138.83,138.82,7.20357297]
[1750528444498,26.72,138.82,138.81,7.20409192]
[1750528444706,26.72,138.82,138.78,7.20564922]
[1750528444707,26.0,138.79,138.78,7.20564922]
[1750528445985,174.0,138.82,138.79,18.64964886]
[1750528446199,174.0,138.82,138.81,18.64964886]
[1750528446399,148.0,138.82,138.81,9.08897734]
[1750528446705,148.0,138.82,138.81,16.29306926]
[1750528449309,148.72,138.82,138.81,25.85374078]
[1750528449889,148.0,138.82,138.81,34.94271812]
[1750528450696,148.72,138.82,138.81,25.85374078]
[1750528451097,148.0,138.82,138.81,7.20409192]
[1750528451407,148.72,138.82,138.81,7.20409192]
[1750528452127,148.0,138.82,138.81,7.20409192]
[1750528452478,148.0,138.82,138.81,34.94271812]
[1750528453509,26.0,138.84,138.82,18.64964886]
[1750528453811,148.0,138.86,138.84,18.64964886]
[1750528454016,0.72,138.89,138.86,18.64964886]
[1750528454229,148.0,138.89,138.86,27.7386262]
[1750528454431,26.0,138.87,138.86,27.7386262]
[1750528455103,26.0,138.87,138.86,34.94012411]
[1750528455533,0.72,138.88,138.86,34.94012411]
[1750528455708,148.0,138.89,138.88,18.64964886]
[1750528455911,148.0,138.89,138.88,9.08897734]
[1750528456908,148.0,138.89,138.87,27.7386262]
[1750528457106,148.72,138.89,138.88,7.20046082]
[1750528458127,148.0,138.89,138.88,7.20046082]
[1750528459503,148.72,138.89,138.88,7.20046082]
[1750528464163,148.0,138.89,138.88,7.20046082]
[1750528464344,148.0,138.89,138.88,16.28943816]
[1750528465338,148.72,138.89,138.88,7.20046082]
[1750528465514,148.0,138.89,138.88,7.20046082]
[1750528465717,148.0,138.89,138.88,34.93908702]
[1750528466635,148.0,138.89,138.88,25.85010968]
[1750528466834,148.0,138.89,138.88,34.93908702]
[1750528467546,27.5239,138.94,138.89,18.64964886]
[1750528467547,148.72,138.93,138.89,18.64964886]
[1750528467836,148.0,138.93,138.92,9.08897734]
[1750528468021,0.72,138.95,138.92,9.08897734]
[1750528468212,0.72,138.95,138.93,18.64964886]
[1750528469032,0.72,138.95,138.94,7.19735137]
[1750528470808,174.0,138.96,138.94,7.19735137]
[1750528471011,174.72,138.96,138.94,7.19735137]
[1750528471519,9.08897734,138.95,138.94,7.19735137]
[1750528471715,9.80897734,138.95,138.94,7.19735137]
[1750528472144,9.80897734,138.95,138.92,25.19394297]
[1750528472517,0.72,138.95,138.92,25.19394297]
[1750528472720,0.72,138.95,138.92,34.28292031]
[1750528473223,0.72,138.95,138.92,25.19394297]
[1750528473633,183.08897734,138.96,138.92,25.19394297]
[1750528474044,148.72,138.95,138.92,25.19394297]
[1750528474228,0.72,138.94,138.92,25.19394297]
[1750528474819,148.72,138.95,138.92,25.19394297]
[1750528475027,148.0,138.95,138.92,25.19394297]
[1750528475223,157.08897734,138.95,138.92,25.19394297]
[1750528475410,0.72,138.93,138.92,43.84359183]
[1750528477442,148.0,138.95,138.92,52.93256917]
[1750528478126,148.0,138.95,138.93,27.7386262]
[1750528479243,148.0,138.95,138.94,25.84700023]
[1750528480124,148.0,138.95,138.94,34.93597757]
[1750528483958,148.0,138.95,138.94,25.84700023]
[1750528484128,148.72,138.95,138.94,25.84700023]
[1750528486268,148.72,138.95,138.91,7.19890576]
[1750528486269,183.08897734,138.95,138.91,7.19890576]
[1750528486449,35.08897734,138.92,138.91,7.19890576]
[1750528486667,35.77897734,138.92,138.91,7.19890576]
[1750528490652,26.0,138.89,138.88,7.20046082]
[1750528490872,35.77897734,138.89,138.86,25.20395345]
[1750528492162,35.77897734,138.88,138.86,25.20395345]
[1750528492674,9.77897734,138.87,138.86,7.20149791]
[1750528493035,157.77897734,138.87,138.86,7.20149791]
[1750528493236,26.0,138.85,138.84,7.20253529]
[1750528493461,26.0,138.85,138.81,13.7838884]
[1750528493462,0.69,138.83,138.81,13.7838884]
[1750528493639,26.0,138.84,138.81,7.2038884]
[1750528493640,9.77897734,138.82,138.81,7.2038884]
[1750528493841,9.77897734,138.82,138.79,7.20513005]
[1750528494064,35.77897734,138.8,138.79,7.20513005]
[1750528494969,0.69,138.79,138.77,25.85581734]
[1750528495149,0.69,138.78,138.77,7.20616848]
[1750528496046,0.69,138.77,138.76,13.78651263]
[1750528496250,9.77897734,138.77,138.76,13.78651263]
[1750528496447,9.77897734,138.77,138.75,7.20708424]
[1750528496448,0.69,138.76,138.75,7.20708424]
[1750528496699,26.0,138.74,138.73,7.20824623]
[1750528496983,26.69,138.74,138.72,25.22961737]
[1750528498736,148.0,138.78,138.73,27.7386262]
[1750528498737,0.69,138.77,138.73,27.7386262]
[1750528498940,26.0,138.75,138.74,18.64964886]
[1750528500771,26.0,138.75,138.74,25.85737554]
[1750528500981,148.0,138.74,138.67,6.1408]
[1750528501152,9.08897734,138.7,138.68,7.21084511]
[1750528501345,0.69,138.68,138.66,7.21188518]
[1750528501551,9.08897734,138.67,138.66,7.21188518]
[1750528501763,9.77897734,138.68,138.66,7.21188518]
[1750528502702,26.0,138.71,138.66,7.21188518]
[1750528502703,26.0,138.71,138.67,27.7386262]
[1750528502872,26.0,138.71,138.69,33.81860858]
[1750528503664,174.0,138.74,138.71,18.64964886]
[1750528503873,26.0,138.74,138.71,15.16895972]
[1750528504075,15.85895972,138.77,138.72,15.16895972]
[1750528504467,41.85895972,138.76,138.72,15.16895972]
[1750528504685,26.69,138.76,138.72,15.16895972]
[1750528504901,41.85895972,138.76,138.73,25.22886181]
[1750528505079,15.85895972,138.76,138.73,25.22886181]
[1750528505274,41.85895972,138.76,138.73,25.22886181]
[1750528505478,26.69,138.74,138.73,7.20824623]
[1750528506406,15.85895972,138.74,138.73,7.20824623]
[1750528506897,0.69,138.74,138.73,7.20824623]
[1750528507400,0.69,138.74,138.71,43.8821483]
[1750528507567,41.85895972,138.76,138.71,59.05110802]
[1750528507769,41.85895972,138.76,138.72,15.16895972]
[1750528508368,41.85895972,138.76,138.71,59.05110802]
[1750528508800,15.85895972,138.75,138.71,59.05110802]
[1750528509102,0.69,138.74,138.71,59.05110802]
[1750528509531,0.69,138.74,138.71,43.8821483]
[1750528509992,0.69,138.74,138.71,59.05110802]
[1750528510896,0.69,138.74,138.71,43.8821483]
[1750528511592,148.0,138.75,138.71,59.05110802]
[1750528511796,148.69,138.75,138.71,59.05110802]
[1750528512281,0.69,138.74,138.71,59.05110802]
[1750528512710,15.85895972,138.74,138.71,43.8821483]
[1750528513119,15.85895972,138.73,138.71,25.23249944]
[1750528513328,15.85895972,138.72,138.71,7.20928555]
[1750528513490,15.16895972,138.72,138.67,7.21136511]
[1750528513691,41.16895972,138.7,138.67,7.21136511]
[1750528514196,41.91895972,138.7,138.67,7.21136511]
[1750528514520,41.91895972,138.7,138.67,25.23977788]
[1750528514701,15.16895972,138.69,138.67,25.23977788]
[1750528515298,15.91895972,138.68,138.67,25.23977788]
[1750528516606,41.16895972,138.7,138.67,43.88942674]
[1750528516829,0.75,138.72,138.67,43.88942674]
[1750528516830,0.75,138.72,138.68,33.81860858]
[1750528517030,0.75,138.74,138.7,15.16895972]
[1750528517213,26.75,138.74,138.7,15.16895972]
[1750528517415,0.75,138.74,138.7,15.16895972]
[1750528517608,26.75,138.74,138.7,15.16895972]
[1750528517811,13.51998175,138.78,138.71,33.81860858]
[1750528517812,0.75,138.77,138.71,33.81860858]
[1750528518017,15.91895972,138.76,138.71,15.16895972]
[1750528518337,0.75,138.75,138.71,15.16895972]
[1750528518520,26.0,138.75,138.72,15.16895972]
[1750528518846,15.16895972,138.77,138.74,25.22704338]
[1750528519024,26.0,138.75,138.74,25.22704338]
[1750528519408,26.0,138.75,138.74,7.20772668]
[1750528519640,26.75,138.75,138.74,7.20772668]
[1750528521028,26.0,138.75,138.73,7.20824623]
[1750528521611,15.16895972,138.77,138.73,59.04747039]
[1750528521911,12.63858175,138.78,138.75,33.81860858]
[1750528521912,11.88858175,138.78,138.75,33.81860858]
[1750528522112,11.88858175,138.78,138.75,18.64964886]
[1750528522418,26.75,138.79,138.75,18.64964886]
[1750528522635,15.91895972,138.79,138.75,18.64964886]
[1750528523036,15.91895972,138.79,138.76,25.22340731]
[1750528523248,0.75,138.79,138.76,25.22340731]
[1750528524046,26.0,138.8,138.76,40.39236703]
[1750528524354,26.0,138.8,138.77,33.81860858]
[1750528524855,148.0,138.82,138.79,18.64964886]
[1750528525170,26.0,138.81,138.8,7.20461095]
[1750528525661,0.75,138.85,138.81,18.64964886]
[1750528525844,15.91895972,138.85,138.81,33.81860858]
[1750528526039,26.75,138.84,138.81,18.64964886]
[1750528526955,15.91895972,138.83,138.8,25.21613832]
[1750528527460,15.91895972,138.83,138.8,40.38509804]
[1750528527461,0.75,138.83,138.8,40.38509804]
[1750528527952,0.75,138.83,138.8,25.21613832]
[1750528528133,26.0,138.84,138.8,40.38509804]
[1750528528332,26.0,138.84,138.81,15.16895972]
[1750528529644,26.0,138.83,138.82,7.20357297]
[1750528530359,0.75,138.86,138.83,18.64964886]
[1750528530558,163.91895972,138.87,138.83,33.81860858]
[1750528530742,0.75,138.86,138.83,18.64964886]
[1750528531261,15.16895972,138.85,138.82,25.2125054]
[1750528531430,0.75,138.84,138.82,25.2125054]
[1750528531625,15.16895972,138.85,138.82,25.2125054]
[1750528531851,15.16895972,138.86,138.82,40.38146512]
[1750528532575,163.91895972,138.87,138.83,33.81860858]
[1750528533442,26.0,138.85,138.84,25.20887352]
[1750528535864,163.91895972,138.87,138.84,25.20887352]
[1750528536386,26.0,138.85,138.84,25.20887352]
[1750528537182,174.0,138.87,138.84,40.37783324]
[1750528537671,174.75,138.87,138.84,25.20887352]
[1750528539196,174.75,138.87,138.84,40.37783324]
[1750528539726,26.75,138.85,138.84,25.20887352]
[1750528539874,15.91895972,138.85,138.84,25.20887352]
[1750528540072,26.75,138.85,138.84,7.20253529]
[1750528540272,41.91895972,138.85,138.84,7.20253529]
[1750528540682,26.0,138.83,138.8,18.01145965]
[1750528540883,26.0,138.83,138.8,25.2160706]
[1750528540884,41.16895972,138.83,138.8,25.2160706]
[1750528541302,0.75,138.82,138.8,25.2160706]
[1750528541500,0.75,138.81,138.8,25.2160706]
[1750528541711,41.91895972,138.81,138.8,25.2160706]
[1750528543305,0.75,138.8,138.78,25.21977229]
[1750528543799,15.91895972,138.8,138.78,25.21977229]
[1750528544604,0.75,138.8,138.78,25.21977229]
[1750528544787,26.0,138.82,138.79,33.81860858]
[1750528544980,26.0,138.8,138.79,33.81860858]
[1750528545304,26.0,138.8,138.79,41.02373863]
[1750528545682,26.0,138.81,138.79,59.03656376]
[1750528546210,26.0,138.8,138.79,43.86760404]
[1750528548220,41.86895972,138.8,138.79,7.20513005]
[1750528549513,26.0,138.79,138.78,7.20564922]
[1750528549710,15.86895972,138.82,138.78,59.03838087]
[1750528549884,26.0,138.81,138.78,59.03838087]
[1750528550284,26.0,138.8,138.79,15.16895972]
[1750528550510,15.16895972,138.83,138.78,79.89766729]
[1750528550716,26.0,138.8,138.79,33.81860858]
[1750528551115,15.86895972,138.83,138.79,33.81860858]
[1750528551287,26.0,138.8,138.79,18.64964886]
[1750528551488,26.0,138.8,138.79,25.85477891]
[1750528556295,26.0,138.8,138.79,7.20513005]
[1750528559115,148.0,138.81,138.79,16.29480923]
[1750528559294,148.0,138.81,138.79,34.94445809]
[1750528560498,148.0,138.81,138.8,18.64964886]
[1750528562661,148.0,138.81,138.8,7.20461095]
[1750528563842,148.0,138.81,138.8,25.85425981]
[1750528564046,26.0,138.84,138.81,18.64964886]
[1750528564264,148.0,138.85,138.83,9.08967918]
[1750528564458,148.0,138.85,138.84,7.20253529]
[1750528565151,26.0,138.83,138.82,7.20357297]
[1750528565353,35.78967918,138.83,138.82,7.20357297]
[1750528565868,0.7,138.82,138.8,7.20461095]
[1750528566066,9.78967918,138.81,138.8,7.20461095]
[1750528566774,9.78967918,138.81,138.79,18.01159831]
[1750528566775,0.7,138.8,138.79,25.21672836]
[1750528567183,0.7,138.8,138.79,7.20513005]
[1750528567376,35.78967918,138.8,138.79,7.20513005]
[1750528568245,148.0,138.79,138.77,7.20616848]
[1750528568444,0.7,138.77,138.74,7.20772668]
[1750528568684,9.08967918,138.77,138.74,25.22704338]
[1750528568865,15.86055765,138.77,138.74,25.22704338]
[1750528570308,0.7,138.76,138.74,25.22704338]
[1750528570498,0.7,138.75,138.72,18.02186229]
[1750528570700,0.7,138.73,138.72,18.02186229]
[1750528570881,0.7,138.75,138.72,18.02186229]
[1750528571588,0.7,138.74,138.72,18.02186229]
[1750528571780,15.16055765,138.75,138.72,18.02186229]
[1750528572103,15.86055765,138.74,138.72,18.02186229]
[1750528573083,26.7,138.72,138.71,7.20928555]
[1750528573407,41.86055765,138.72,138.71,7.20928555]
[1750528576583,31.5028,138.78,138.72,18.64964886]
[1750528576584,15.84055765,138.76,138.72,18.64964886]
[1750528576784,163.16055765,138.79,138.75,15.16055765]
[1750528577026,26.0,138.76,138.72,18.64964886]
[1750528577231,163.16055765,138.79,138.75,15.16055765]
[1750528577232,148.0,138.79,138.75,15.16055765]
[1750528577431,148.0,138.79,138.76,40.38396496]
[1750528577629,174.0,138.79,138.77,15.16055765]
[1750528577800,174.0,138.79,138.77,18.64964886]
[1750528577995,174.0,138.79,138.76,40.38396496]
[1750528577996,174.68,138.79,138.76,40.38396496]
[1750528578398,174.68,138.79,138.76,25.22340731]
[1750528578399,148.68,138.79,138.76,25.22340731]
[1750528578716,174.68,138.79,138.76,40.38396496]
[1750528579320,148.68,138.79,138.76,40.38396496]
[1750528579822,174.68,138.79,138.76,25.22340731]
[1750528580191,174.68,138.79,138.76,40.38396496]
[1750528580518,189.84055765,138.79,138.76,25.22340731]
[1750528580924,174.68,138.79,138.76,25.22340731]
[1750528581219,189.84055765,138.79,138.76,25.22340731]
[1750528581790,174.68,138.79,138.76,40.38396496]
[1750528584201,189.84055765,138.79,138.76,25.22340731]
[1750528584646,0.68,138.78,138.76,25.22340731]
[1750528584942,189.16055765,138.79,138.68,36.0]
[1750528584943,41.16055765,138.77,138.72,25.85841471]
[1750528585147,26.0,138.77,138.73,15.16055765]
[1750528585749,26.68,138.77,138.74,15.16055765]
[1750528586515,26.0,138.77,138.74,15.16055765]
[1750528586716,148.0,138.79,138.76,15.16055765]
[1750528586947,174.0,138.79,138.77,7.20616848]
[1750528587144,174.68,138.79,138.77,7.20616848]
[1750528588224,174.0,138.79,138.77,22.36672613]
[1750528590450,148.0,138.79,138.77,22.36672613]
[1750528593064,0.68,138.78,138.77,25.85581734]
[1750528593371,0.68,138.78,138.77,7.20616848]
[1750528594343,148.0,138.79,138.77,25.85581734]
[1750528594552,148.0,138.79,138.77,41.01637499]
[1750528596245,0.68,138.78,138.77,25.85581734]
[1750528597369,0.68,138.78,138.77,7.20616848]
[1750528599559,0.68,138.78,138.76,25.22304335]
[1750528600380,157.09213019,138.79,138.76,25.22304335]
[1750528600696,0.68,138.78,138.76,25.22304335]
[1750528601069,148.0,138.77,138.76,25.22304335]
[1750528602287,148.68,138.77,138.76,25.22304335]
[1750528603086,148.0,138.77,138.76,25.22304335]
[1750528603393,148.0,138.77,138.76,52.9648224]
[1750528605393,148.0,138.77,138.76,43.87269221]
[1750528606094,148.0,138.77,138.76,52.9648224]
[1750528606290,148.69,138.77,138.76,25.22304335]
[1750528607989,157.78213019,138.77,138.76,25.22304335]
[1750528608880,148.69,138.77,138.76,25.22304335]
[1750528609086,148.0,138.77,138.76,25.22304335]
[1750528609286,26.69,138.79,138.76,18.01635555]
[1750528609475,35.78213019,138.79,138.76,18.01635555]
[1750528609796,26.0,138.77,138.76,18.01635555]